bitfinex/quotes_BTCUSD_20230404
["timestamp","ask_amount","ask_price","bid_price","bid_amount"]
[1680622545301,0.02278046,27994.0,27991.0,0.174771]
[1680622545520,0.02278046,27994.0,27992.0,0.023183]
[1680622545962,0.02278046,27994.0,27991.0,0.15]
[1680622546430,0.02278046,27994.0,27992.0,0.05888217]
[1680622546665,0.02278046,27994.0,27993.0,0.022338]
[1680622546892,0.02278046,27994.0,27991.0,0.34942]
[1680622547116,0.02278046,27994.0,27992.0,0.024911]
[1680622547889,0.02278046,27994.0,27992.0,0.196331]
[1680622548117,0.02278046,27994.0,27992.0,0.17142]
[1680622548353,0.02849546,27994.0,27992.0,0.019]
[1680622548597,0.02849546,27994.0,27993.0,0.0083]
[1680622548598,0.02278046,27994.0,27993.0,0.0083]
[1680622549736,0.02278046,27994.0,27993.0,0.0143]
[1680622550413,0.05782846,27994.0,27993.0,0.0083]
[1680622550652,0.06924201,27994.0,27993.0,0.0143]
[1680622551575,0.06924201,27994.0,27993.0,0.0083]
[1680622552953,0.06924201,27994.0,27993.0,0.0093]
[1680622554114,0.06405346,27994.0,27993.0,0.0093]
[1680622555285,0.05833846,27994.0,27993.0,0.0093]
[1680622555521,0.02329046,27994.0,27993.0,0.0093]
[1680622555982,0.02278046,27994.0,27993.0,0.04686]
[1680622556206,0.02278046,27994.0,27993.0,0.032571]
[1680622556421,0.02278046,27994.0,27993.0,0.08654]
[1680622556642,0.02278046,27994.0,27993.0,0.37796]
[1680622557291,0.02278046,27994.0,27993.0,0.39696]
[1680622557751,0.02288,28000.0,27993.0,0.39696]
[1680622557752,0.27516851,28008.0,27994.0,0.100786]
[1680622557995,0.27516851,28008.0,28007.0,0.01811982]
[1680622557996,0.02288,28008.0,28007.0,0.01811982]
[1680622558248,0.08081869,28011.0,28007.0,0.01811982]
[1680622558249,0.04576,28011.0,28007.0,0.63792382]
[1680622558487,0.0179,28014.0,28009.0,0.03576]
[1680622558727,0.02288,28017.0,28009.0,0.03576]
[1680622558728,0.02288,28017.0,28014.0,0.03576]
[1680622558958,0.02288,28017.0,28016.0,0.12106]
[1680622559194,0.02288,28017.0,28016.0,0.15059954]
[1680622559450,0.02288,28017.0,28016.0,0.22440354]
[1680622559677,0.02288,28017.0,28016.0,0.023624]
[1680622559913,0.02288,28017.0,28016.0,0.00018]
[1680622560144,0.02288,28017.0,28015.0,0.024358]
[1680622560368,0.02288,28017.0,28015.0,0.0589178]
[1680622560596,0.02288,28017.0,28016.0,0.024148]
[1680622560838,0.02288,28017.0,28016.0,0.00018]
[1680622561071,0.02288,28017.0,28015.0,0.00018]
[1680622561304,0.02288,28017.0,28012.0,0.185519]
[1680622561305,0.02288,28017.0,28014.0,0.00018]
[1680622561538,0.02288,28017.0,28014.0,0.024496]
[1680622561772,0.02288,28017.0,28016.0,0.028]
[1680622562003,0.02288,28017.0,28016.0,0.024591]
[1680622563239,0.02288,28017.0,28016.0,0.043591]
[1680622563698,0.02288,28017.0,28016.0,0.057868]
[1680622563924,0.02288,28017.0,28016.0,0.207868]
[1680622564148,0.02288,28017.0,28016.0,0.46119494]
[1680622564370,0.02288,28017.0,28016.0,0.44219494]
[1680622564600,0.05124783,28017.0,28016.0,0.47019494]
[1680622564823,0.05124783,28017.0,28016.0,0.29219494]
[1680622565047,0.05124783,28017.0,28016.0,0.32019494]
[1680622566419,0.02288,28017.0,28016.0,0.6749055]
[1680622566660,0.02288,28017.0,28016.0,0.223771]
[1680622566881,0.02288,28017.0,28016.0,0.052591]
[1680622567109,0.02288,28017.0,28016.0,0.066868]
[1680622567326,0.02288,28017.0,28016.0,0.210108]
[1680622567544,0.02288,28017.0,28016.0,0.223831]
[1680622567545,0.04969922,28017.0,28016.0,0.223831]
[1680622567771,0.04969922,28017.0,28016.0,0.2476418]
[1680622567991,0.04469922,28017.0,28016.0,0.2194618]
[1680622568211,0.04469922,28017.0,28016.0,0.2474618]
[1680622568441,0.01788,28017.0,28016.0,0.2194618]
[1680622568672,0.01788,28017.0,28016.0,0.2474618]
[1680622568896,0.01788,28017.0,28016.0,0.052411]
[1680622569158,0.01288,28017.0,28016.0,0.052411]
[1680622569383,0.03855905,28017.0,28016.0,0.052411]
[1680622570041,0.03355905,28017.0,28016.0,0.052411]
[1680622570716,0.03355905,28017.0,28016.0,0.0590799]
[1680622572669,0.03355905,28017.0,28016.0,0.052411]
[1680622575596,0.03355905,28017.0,28016.0,0.028]
[1680622575822,0.06792905,28017.0,28016.0,0.028]
[1680622576501,0.06792905,28017.0,28016.0,0.02554021]
[1680622576765,0.06792905,28017.0,28011.0,0.185519]
[1680622576986,0.14189681,28016.0,28013.0,0.17124]
[1680622577211,0.03506905,28017.0,28012.0,0.17124]
[1680622577433,0.14977681,28017.0,28014.0,0.17124]
[1680622577657,0.00788,28017.0,28016.0,0.006]
[1680622577890,0.00788,28017.0,28012.0,0.17124]
[1680622578167,0.15077681,28017.0,28014.0,0.17124]
[1680622578407,0.00839,28017.0,28013.0,0.17124]
[1680622578639,0.00888,28017.0,28013.0,0.17124]
[1680622579109,0.376,28016.0,28012.0,0.1713]
[1680622579347,0.54208339,28016.0,28012.0,0.1713]
[1680622579574,0.54208339,28016.0,28010.0,0.00018]
[1680622579575,0.40018658,28016.0,28010.0,0.00018]
[1680622579809,0.37639681,28015.0,28014.0,0.012]
[1680622580045,0.15,28014.0,28009.0,0.1713]
[1680622580281,0.14189681,28013.0,28012.0,0.025]
[1680622580503,0.034136,28013.0,28007.0,0.17148]
[1680622580741,0.14189681,28012.0,28008.0,0.1713]
[1680622581186,0.527,28013.0,28007.0,0.00018]
[1680622581431,0.51789681,28013.0,28009.0,0.1713]
[1680622581668,0.376,28013.0,28007.0,0.17148]
[1680622581900,0.51789681,28013.0,28007.0,0.1713]
[1680622582129,0.51789681,28013.0,28007.0,0.185582]
[1680622582347,0.51789681,28013.0,28007.0,0.21512154]
[1680622582572,0.51789681,28013.0,28008.0,0.1903]
[1680622582791,0.45126068,28013.0,28008.0,0.1713]
[1680622583568,0.45126068,28013.0,28008.0,0.1903]
[1680622583819,0.526,28012.0,28008.0,0.1713]
[1680622584072,0.526,28012.0,28008.0,0.1903]
[1680622584326,0.526,28012.0,28008.0,0.019]
[1680622584624,0.085,28010.0,28008.0,0.019]
[1680622584887,0.034775,28009.0,28008.0,0.019]
[1680622585131,0.085,28010.0,28008.0,0.019]
[1680622585397,0.035972,28009.0,28005.0,0.185583]
[1680622585630,0.085,28010.0,28005.0,0.185703]
[1680622585862,0.22689681,28010.0,28008.0,0.019]
[1680622586092,0.085,28010.0,28005.0,0.014403]
[1680622586316,0.30898167,28010.0,28008.0,0.019]
[1680622586550,0.036488,28009.0,28004.0,0.17148]
[1680622586783,0.14189681,28009.0,28004.0,0.00012]
[1680622587003,0.51789681,28009.0,28005.0,0.1993]
[1680622587237,0.037662,28008.0,28004.0,0.17148]
[1680622587468,0.085,28010.0,28005.0,0.0213764]
[1680622587925,0.085,28010.0,28005.0,0.1926764]
[1680622588579,0.461,28010.0,28005.0,0.1926764]
[1680622588816,0.46151,28010.0,28005.0,0.0333764]
[1680622589039,0.461,28010.0,28005.0,0.0333764]
[1680622589499,0.467222,28010.0,28005.0,0.0333764]
[1680622589732,0.032925,28009.0,28005.0,0.0333764]
[1680622590152,0.027846,28009.0,28005.0,0.2046764]
[1680622590378,0.027846,28009.0,28006.0,0.02047964]
[1680622590590,0.112046,28009.0,28006.0,0.02047964]
[1680622590811,0.036223,28008.0,28005.0,0.1833]
[1680622591097,0.0842,28009.0,28005.0,0.01206]
[1680622591331,0.0842,28009.0,28004.0,0.00018]
[1680622591554,0.0842,28009.0,28005.0,0.1833]
[1680622591778,0.0842,28009.0,28004.0,0.17148]
[1680622591999,0.0842,28009.0,28005.0,0.029148]
[1680622592223,0.033706,28008.0,28005.0,0.188448]
[1680622592445,0.0842,28009.0,28005.0,0.017268]
[1680622592666,0.033065,28008.0,28005.0,0.017148]
[1680622592908,0.0842,28009.0,28005.0,0.200448]
[1680622593098,0.0842,28009.0,28005.0,0.029268]
[1680622593317,0.0842,28009.0,28006.0,0.0200628]
[1680622593536,0.0842,28009.0,28005.0,0.012]
[1680622593537,0.034229,28008.0,28005.0,0.1833]
[1680622593766,0.0842,28009.0,28005.0,0.01206]
[1680622593998,0.0842,28009.0,28005.0,0.012]
[1680622594231,0.085,28011.0,28005.0,0.21512254]
[1680622594451,0.02351705,28008.0,28006.0,0.05892039]
[1680622594675,0.02351705,28008.0,28006.0,0.03866285]
[1680622594897,0.02351705,28008.0,28006.0,0.02438085]
[1680622595121,0.02351705,28008.0,28007.0,0.026207]
[1680622595342,0.085,28011.0,28007.0,0.04841379]
[1680622595577,0.085,28011.0,28007.0,0.05174633]
[1680622595793,0.085,28011.0,28007.0,0.02220679]
[1680622596681,0.381711,28013.0,28006.0,0.00518]
[1680622596914,0.08511,28014.0,28007.0,0.02953954]
[1680622597138,0.0846,28014.0,28009.0,0.014281]
[1680622597368,0.0846,28014.0,28009.0,0.04820259]
[1680622597650,0.0846,28014.0,28009.0,0.03392159]
[1680622597877,0.03481,28013.0,28009.0,0.03392159]
[1680622598099,0.03481,28013.0,28009.0,0.00438205]
[1680622598315,0.0846,28014.0,28007.0,0.014281]
[1680622598533,0.22649681,28014.0,28009.0,0.012]
[1680622598765,0.00036,28015.0,28013.0,0.35471056]
[1680622598993,0.00803,28017.0,28015.0,0.376]
[1680622599242,0.02288,28022.0,28016.0,0.9856988]
[1680622599479,0.02288,28022.0,28020.0,0.0847]
[1680622599702,0.02288,28022.0,28021.0,0.159922]
[1680622599956,0.02288,28022.0,28021.0,0.781282]
[1680622600229,0.02288,28022.0,28021.0,0.809832]
[1680622600502,0.02288,28022.0,28021.0,0.9760652]
[1680622600746,0.02288,28022.0,28021.0,0.225047]
[1680622601173,0.02288,28022.0,28021.0,0.197047]
[1680622601411,0.02288,28022.0,28021.0,0.225047]
[1680622601632,0.02288,28022.0,28021.0,0.025867]
[1680622601858,0.02288,28022.0,28021.0,0.225047]
[1680622602779,0.02288,28022.0,28021.0,0.197107]
[1680622603241,0.02288,28022.0,28021.0,0.043867]
[1680622603458,0.04826765,28022.0,28021.0,0.043867]
[1680622603914,0.04826765,28022.0,28021.0,0.215107]
[1680622604603,0.04826765,28022.0,28021.0,0.229382]
[1680622604604,0.02288,28022.0,28021.0,0.229382]
[1680622604818,0.02288,28022.0,28021.0,0.2915002]
[1680622605743,0.02288,28022.0,28021.0,0.2772252]
[1680622605992,0.02288,28022.0,28021.0,0.2915002]
[1680622606217,0.02288,28022.0,28021.0,0.197107]
[1680622606443,0.02288,28022.0,28021.0,0.215107]
[1680622606672,0.02288,28022.0,28021.0,0.197107]
[1680622606903,0.02288,28022.0,28021.0,0.225107]
[1680622607113,0.02288,28022.0,28021.0,0.197107]
[1680622607332,0.02288,28022.0,28021.0,0.2897002]
[1680622607556,0.05293079,28022.0,28021.0,0.2717002]
[1680622607773,0.05293079,28022.0,28021.0,0.2897002]
[1680622607997,0.05293079,28022.0,28021.0,0.2896402]
[1680622608230,0.05293079,28022.0,28021.0,0.215107]
[1680622608461,0.05293079,28022.0,28021.0,0.043867]
[1680622608462,0.02288,28022.0,28021.0,0.043867]
[1680622608677,0.02288,28022.0,28021.0,0.025867]
[1680622608900,0.02288,28022.0,28021.0,0.215107]
[1680622609113,0.02288,28022.0,28021.0,0.197107]
[1680622609370,0.05293079,28022.0,28021.0,0.222107]
[1680622609592,0.05293079,28022.0,28021.0,0.050867]
[1680622609817,0.05293079,28022.0,28021.0,0.2992002]
[1680622610030,0.05293079,28022.0,28021.0,0.2742002]
[1680622610245,0.05293079,28022.0,28021.0,0.2922002]
[1680622610462,0.02288,28022.0,28021.0,0.2742002]
[1680622610734,0.02288,28022.0,28021.0,0.2922002]
[1680622611385,0.02288,28022.0,28021.0,0.2779252]
[1680622611604,0.02288,28022.0,28021.0,0.2742002]
[1680622611817,0.02288,28022.0,28021.0,0.2922002]
[1680622612045,0.02288,28022.0,28021.0,0.2921402]
[1680622612508,0.02288,28022.0,28021.0,0.4241402]
[1680622612735,0.02288,28022.0,28021.0,0.4521402]
[1680622613172,0.02288,28022.0,28021.0,1.23905076]
[1680622613392,0.02288,28022.0,28021.0,1.26705076]
[1680622614707,0.01788,28022.0,28021.0,1.11687076]
[1680622614919,0.01788,28022.0,28021.0,1.08887076]
[1680622615136,0.01788,28022.0,28021.0,1.11687076]
[1680622615360,0.01788,28022.0,28021.0,0.71287076]
[1680622615574,0.01788,28022.0,28021.0,0.74087076]
[1680622615816,0.01788,28022.0,28021.0,0.323342]
[1680622617175,0.01788,28022.0,28021.0,1.53256256]
[1680622617833,0.01788,28022.0,28021.0,1.50456256]
[1680622618062,0.01788,28022.0,28021.0,1.53256256]
[1680622618574,0.05,28024.0,28023.0,0.376]
[1680622618856,0.05,28024.0,28023.0,1.44355982]
[1680622619127,0.05,28024.0,28023.0,1.61473982]
[1680622619396,0.02288,28028.0,28025.0,0.41176]
[1680622619709,0.02288,28028.0,28026.0,1.15511556]
[1680622619933,0.02288,28028.0,28027.0,0.026656]
[1680622620462,0.02288,28028.0,28027.0,0.39066211]
[1680622620673,0.02288,28028.0,28027.0,0.40826211]
[1680622620674,0.02288,28028.0,28027.0,0.044256]
[1680622621231,0.02288,28028.0,28027.0,0.072256]
[1680622621505,0.05534842,28028.0,28027.0,0.072256]
[1680622622058,0.05534842,28028.0,28027.0,0.044256]
[1680622622328,0.05534842,28028.0,28027.0,0.1344068]
[1680622622596,0.05534842,28028.0,28027.0,0.044256]
[1680622623901,0.05534842,28028.0,28027.0,0.086527]
[1680622624461,0.02288,28028.0,28027.0,0.086527]
[1680622625320,0.50726441,28028.0,28027.0,0.028]
[1680622625324,0.68566441,28028.0,28027.0,0.028]
[1680622625849,0.61058175,28028.0,28027.0,0.028]
[1680622625850,0.91058175,28028.0,28027.0,0.028]
[1680622626618,0.93509167,28028.0,28020.0,0.00012]
[1680622626947,0.0849,28024.0,28019.0,0.17142]
[1680622627183,0.14189681,28023.0,28019.0,0.00018]
[1680622627468,0.14189681,28023.0,28019.0,0.0187496]
[1680622627732,0.0849,28024.0,28020.0,0.012]
[1680622627990,0.0849,28024.0,28020.0,0.00018]
[1680622629705,0.0849,28024.0,28020.0,0.026455]
[1680622629978,0.0849,28027.0,28020.0,0.197695]
[1680622630241,0.38838,28028.0,28021.0,0.2878751]
[1680622630710,0.38838,28028.0,28022.0,0.025581]
[1680622630713,0.02288,28028.0,28022.0,0.92747156]
[1680622630943,0.02288,28028.0,28023.0,0.17242821]
[1680622631171,0.02288,28028.0,28024.0,0.175433]
[1680622631409,0.02288,28028.0,28025.0,0.038916]
[1680622631638,0.02288,28028.0,28026.0,0.025224]
[1680622631892,0.02288,28028.0,28026.0,0.196584]
[1680622632117,0.02288,28028.0,28027.0,0.0463916]
[1680622632330,0.02288,28028.0,28027.0,0.0464516]
[1680622632763,0.02288,28028.0,28027.0,0.0463916]
[1680622632968,0.02288,28028.0,28027.0,0.025366]
[1680622633203,0.02288,28028.0,28027.0,0.053306]
[1680622633412,0.04921292,28028.0,28027.0,0.025426]
[1680622633630,0.04921292,28028.0,28027.0,0.053426]
[1680622633839,0.04921292,28028.0,28027.0,0.028]
[1680622634276,0.04921292,28028.0,28027.0,0.02812]
[1680622634736,0.04921292,28028.0,28027.0,0.053038]
[1680622634951,0.04921292,28028.0,28027.0,0.02818]
[1680622635174,0.04921292,28028.0,28027.0,0.00012]
[1680622635395,0.04921292,28028.0,28027.0,0.02506]
[1680622635619,0.04921292,28028.0,28027.0,0.02512]
[1680622636292,0.02921292,28028.0,28027.0,0.0460632]
[1680622636940,0.02921292,28028.0,28027.0,0.0710972]
[1680622637649,0.02921292,28028.0,28027.0,0.0460632]
[1680622637857,0.02921292,28028.0,28027.0,0.0603342]
[1680622638082,0.02921292,28028.0,28027.0,0.0861072]
[1680622638291,0.02921292,28028.0,28027.0,0.0718362]
[1680622638553,0.00288,28028.0,28027.0,0.0718362]
[1680622638779,0.00288,28028.0,28027.0,0.0861072]
[1680622639002,0.00288,28028.0,28027.0,0.2572872]
[1680622639213,0.00288,28028.0,28027.0,0.236224]
[1680622640552,0.00288,28028.0,28027.0,0.221953]
[1680622641480,0.00288,28028.0,28027.0,0.19618]
[1680622641928,0.00288,28028.0,28027.0,0.221809]
[1680622642145,0.00288,28028.0,28027.0,0.2524979]
[1680622642800,0.00288,28028.0,28027.0,0.2268689]
[1680622643014,0.00288,28028.0,28027.0,0.2517619]
[1680622643448,0.00288,28028.0,28027.0,0.2268689]
[1680622643669,0.00288,28028.0,28027.0,0.2522759]
[1680622643889,0.00288,28028.0,28027.0,0.2268689]
[1680622644774,0.00288,28028.0,28027.0,0.025]
[1680622645478,0.0304873,28028.0,28027.0,0.025]
[1680622646408,0.0304873,28028.0,28027.0,0.049373]
[1680622647791,0.0304873,28028.0,28027.0,0.220553]
[1680622648912,0.0304873,28028.0,28027.0,0.220598]
[1680622649136,0.0304873,28028.0,28027.0,0.259103]
[1680622649562,0.0304873,28028.0,28027.0,0.087923]
[1680622650017,0.0304873,28028.0,28027.0,0.049418]
[1680622651373,0.0304873,28028.0,28027.0,0.025]
[1680622651591,0.0304873,28028.0,28027.0,0.039271]
[1680622651819,0.0304873,28028.0,28027.0,0.064653]
[1680622652494,0.00288,28028.0,28027.0,0.050382]
[1680622653014,0.00288,28028.0,28027.0,0.86784946]
[1680622653747,0.00288,28028.0,28027.0,0.85357846]
[1680622654224,0.00288,28028.0,28027.0,0.78109256]
[1680622654880,0.00288,28028.0,28027.0,0.050382]
[1680622657150,0.00288,28028.0,28027.0,0.049671]
[1680622659342,0.0275031,28028.0,28027.0,0.049671]
[1680622659589,0.0275031,28028.0,28027.0,0.063942]
[1680622659809,0.0275031,28028.0,28027.0,0.049671]
[1680622660039,0.02707362,28028.0,28027.0,0.049671]
[1680622660252,0.02707362,28028.0,28027.0,0.063942]
[1680622661644,0.00245052,28028.0,28027.0,0.063942]
[1680622662707,0.00245052,28028.0,28027.0,0.50295256]
[1680622662974,0.00245052,28028.0,28027.0,0.67413256]
[1680622664138,0.00245052,28028.0,28027.0,0.82413256]
[1680622664355,0.00245052,28028.0,28027.0,0.96201822]
[1680622665437,0.00245052,28028.0,28027.0,0.96207822]
[1680622665659,0.00245052,28028.0,28027.0,0.81207822]
[1680622666095,0.00245052,28028.0,28027.0,0.81201822]
[1680622666311,0.00245052,28028.0,28027.0,1.18801822]
[1680622666535,0.00245052,28028.0,28027.0,1.22377822]
[1680622667915,0.02288,28034.0,28027.0,1.72897423]
[1680622668190,0.02288,28034.0,28033.0,0.0849]
[1680622668456,0.02288,28034.0,28033.0,0.5435161]
[1680622668690,0.02288,28034.0,28033.0,0.98509656]
[1680622668913,0.02288,28034.0,28033.0,1.13509656]
[1680622669371,0.02288,28034.0,28033.0,1.53909656]
[1680622669597,0.02288,28034.0,28033.0,1.67632802]
[1680622669816,0.02288,28034.0,28033.0,1.70432802]
[1680622670276,0.01788,28034.0,28033.0,1.70432802]
[1680622670781,0.01788,28034.0,28033.0,1.70902802]
[1680622671017,0.01788,28034.0,28033.0,1.68102802]
[1680622671246,0.01788,28034.0,28033.0,1.70902802]
[1680622671468,0.01788,28034.0,28033.0,1.68092802]
[1680622671694,0.01788,28034.0,28033.0,1.70892802]
[1680622672135,0.01788,28034.0,28033.0,1.52367088]
[1680622672363,0.01788,28034.0,28033.0,1.49567088]
[1680622672589,0.01788,28034.0,28033.0,1.52367088]
[1680622672825,0.01788,28034.0,28033.0,0.228158]
[1680622673058,0.01788,28034.0,28033.0,0.0327]
[1680622673289,0.01788,28034.0,28033.0,0.057102]
[1680622673513,0.01788,28034.0,28033.0,0.0327]
[1680622673746,0.01788,28034.0,28033.0,0.91810746]
[1680622673982,0.01788,28034.0,28033.0,0.3561219]
[1680622674208,0.01788,28034.0,28033.0,0.3983899]
[1680622674435,0.01788,28034.0,28033.0,0.3703899]
[1680622674671,0.01788,28034.0,28033.0,0.3983899]
[1680622674901,0.01788,28034.0,28033.0,0.3703899]
[1680622675020,0.01788,28034.0,28033.0,0.3841219]
[1680622675243,0.01788,28034.0,28033.0,0.3983899]
[1680622675501,0.01788,28034.0,28033.0,0.3703899]
[1680622675702,0.01788,28034.0,28033.0,0.3983899]
[1680622675902,0.01788,28034.0,28033.0,0.3703899]
[1680622676343,0.01788,28034.0,28033.0,0.201425]
[1680622676799,0.01788,28034.0,28033.0,0.0047]
[1680622677016,0.01788,28034.0,28033.0,0.0327]
[1680622677223,0.01788,28034.0,28033.0,0.0047]
[1680622677434,0.04616597,28034.0,28033.0,0.0327]
[1680622677637,0.04616597,28034.0,28033.0,0.0047]
[1680622677849,0.04616597,28034.0,28033.0,0.0327]
[1680622678072,0.04616597,28034.0,28033.0,0.0047]
[1680622678346,0.04616597,28034.0,28033.0,0.0297]
[1680622678347,0.04646597,28034.0,28033.0,0.0297]
[1680622678534,0.25132991,28034.0,28033.0,0.0297]
[1680622678768,0.25703691,28034.0,28033.0,0.0297]
[1680622678972,0.25132991,28034.0,28033.0,0.0297]
[1680622679385,0.28505191,28034.0,28033.0,0.0297]
[1680622679598,0.25132991,28034.0,28033.0,0.0047]
[1680622679809,0.25132991,28034.0,28033.0,0.018]
[1680622680020,0.28535591,28034.0,28033.0,0.018]
[1680622680230,0.29106291,28034.0,28033.0,0.018]
[1680622680442,0.25132991,28034.0,28033.0,0.018]
[1680622681318,0.28530991,28034.0,28033.0,0.018]
[1680622682448,0.25132991,28034.0,28033.0,0.018]
[1680622683089,0.28368091,28034.0,28033.0,0.018]
[1680622683528,0.04646597,28034.0,28033.0,0.018]
[1680622683968,0.04646597,28034.0,28033.0,0.0285]
[1680622688190,0.04646597,28034.0,28033.0,0.0791629]
[1680622688406,0.04646597,28034.0,28033.0,0.067516]
[1680622688609,0.04646597,28034.0,28033.0,0.217516]
[1680622688816,0.04646597,28034.0,28033.0,0.067516]
[1680622689021,0.04646597,28034.0,28033.0,0.053248]
[1680622689452,0.04616597,28034.0,28033.0,0.0285]
[1680622690535,0.04616597,28034.0,28033.0,0.19962]
[1680622690762,0.04637597,28034.0,28033.0,0.0285]
[1680622690979,0.04616597,28034.0,28033.0,0.0285]
[1680622692083,0.04646597,28034.0,28033.0,0.19962]
[1680622692486,0.04646597,28034.0,28033.0,0.0285]
[1680622692697,0.04646597,28034.0,28033.0,0.19962]
[1680622692906,0.04646597,28034.0,28033.0,0.042768]
[1680622693331,0.04646597,28034.0,28033.0,0.0285]
[1680622693761,0.04616597,28034.0,28033.0,0.19962]
[1680622693959,0.04646597,28034.0,28033.0,0.0285]
[1680622694178,0.04646597,28034.0,28033.0,0.19962]
[1680622695237,0.04604704,28034.0,28033.0,0.19962]
[1680622695456,0.04604704,28034.0,28033.0,0.0285]
[1680622695688,0.04604704,28034.0,28033.0,0.042768]
[1680622695900,0.04604704,28034.0,28033.0,0.213888]
[1680622696117,0.04604704,28034.0,28033.0,0.238805]
[1680622696336,0.04604704,28034.0,28033.0,0.3031572]
[1680622698324,0.04604704,28034.0,28033.0,0.224537]
[1680622698528,0.04604704,28034.0,28033.0,0.19962]
[1680622698736,0.04604704,28034.0,28033.0,0.0285]
[1680622698951,0.04604704,28034.0,28033.0,0.19962]
[1680622699353,0.04604704,28034.0,28033.0,0.067356]
[1680622699605,0.04604704,28034.0,28033.0,0.0919635]
[1680622699806,0.04604704,28034.0,28033.0,0.99379406]
[1680622700225,0.01776107,28034.0,28033.0,0.2630835]
[1680622700893,0.01776107,28034.0,28033.0,0.220476]
[1680622701104,0.01776107,28034.0,28033.0,0.024768]
[1680622701346,0.01776107,28034.0,28033.0,0.077789]
[1680622701765,0.01776107,28034.0,28033.0,0.049789]
[1680622701983,0.01776107,28034.0,28033.0,0.248909]
[1680622702221,0.01776107,28034.0,28033.0,0.1467878]
[1680622702440,0.01776107,28034.0,28033.0,0.3178478]
[1680622702670,0.01776107,28034.0,28033.0,0.3179078]
[1680622703501,0.01776107,28034.0,28033.0,0.1187878]
[1680622703725,0.01776107,28034.0,28033.0,0.1467278]
[1680622703946,0.01776107,28034.0,28033.0,0.1187278]
[1680622704158,0.01776107,28034.0,28033.0,0.87743836]
[1680622705014,0.01776107,28034.0,28033.0,0.84943836]
[1680622705219,0.01776107,28034.0,28033.0,0.87743836]
[1680622706760,0.01776107,28034.0,28033.0,1.04855836]
[1680622707204,0.01776107,28034.0,28033.0,1.08431836]
[1680622708754,0.01776107,28034.0,28033.0,1.05631836]
[1680622709843,0.01776107,28034.0,28033.0,1.08431836]
[1680622710050,0.01776107,28034.0,28033.0,1.05631836]
[1680622710267,0.01776107,28034.0,28033.0,1.08437836]
[1680622711094,0.01776107,28034.0,28033.0,1.08420745]
[1680622711305,0.01776107,28034.0,28033.0,1.0846368]
[1680622712352,0.01776107,28034.0,28033.0,1.015698]
[1680622714345,6.107e-05,28034.0,28033.0,1.74215472]
[1680622714606,6.107e-05,28034.0,28033.0,1.74197472]
[1680622715653,6.107e-05,28034.0,28033.0,1.65661229]
[1680622715855,6.107e-05,28034.0,28033.0,1.62861229]
[1680622716068,6.107e-05,28034.0,28033.0,1.65661229]
[1680622716275,6.107e-05,28034.0,28033.0,1.62861229]
[1680622716513,6.107e-05,28034.0,28033.0,1.65661229]
[1680622716758,6.107e-05,28034.0,28033.0,1.65618294]
[1680622718300,6.107e-05,28034.0,28033.0,1.62818294]
[1680622718781,6.107e-05,28034.0,28033.0,1.65618294]
[1680622718992,6.107e-05,28034.0,28033.0,1.62818294]
[1680622719209,6.107e-05,28034.0,28033.0,1.65618294]
[1680622720612,6.107e-05,28034.0,28033.0,1.66468294]
[1680622720830,6.107e-05,28034.0,28033.0,1.75268537]
[1680622721053,6.107e-05,28034.0,28033.0,1.66732294]
[1680622721506,6.107e-05,28034.0,28033.0,1.63932294]
[1680622721722,6.107e-05,28034.0,28033.0,1.66732294]
[1680622721947,6.107e-05,28034.0,28033.0,1.63932294]
[1680622722375,6.107e-05,28034.0,28033.0,1.66732294]
[1680622723027,6.107e-05,28034.0,28033.0,1.63932294]
[1680622723412,0.02288,28039.0,28035.0,0.41176]
[1680622723623,0.02288,28039.0,28036.0,0.89266939]
[1680622723821,0.02288,28039.0,28037.0,0.024862]
[1680622724101,0.02288,28039.0,28038.0,0.014266]
[1680622724341,0.02288,28039.0,28038.0,0.210889]
[1680622725453,0.02288,28039.0,28038.0,0.238889]
[1680622725890,0.02288,28039.0,28038.0,0.27848718]
[1680622726338,0.02288,28039.0,28038.0,0.238889]
[1680622726793,0.02288,28039.0,28038.0,0.19912]
[1680622727014,0.02288,28039.0,28038.0,0.20932]
[1680622729554,0.05088257,28039.0,28038.0,0.20932]
[1680622730448,0.05088257,28039.0,28038.0,0.94003056]
[1680622730673,0.05088257,28039.0,28038.0,1.06245922]
[1680622730895,0.05088257,28039.0,28038.0,1.07672522]
[1680622731332,0.05088257,28039.0,28038.0,1.06245922]
[1680622731554,0.05088257,28039.0,28038.0,0.33174866]
[1680622731781,0.05088257,28039.0,28038.0,0.204743]
[1680622732012,0.05088257,28039.0,28038.0,0.20932]
[1680622732238,0.05088257,28039.0,28038.0,0.207591]
[1680622733599,0.05088257,28039.0,28038.0,0.93830156]
[1680622733820,0.05088257,28039.0,28038.0,0.95256756]
[1680622734051,0.05088257,28039.0,28038.0,1.09725362]
[1680622734261,0.05088257,28039.0,28038.0,1.09719362]
[1680622734480,0.05088257,28039.0,28038.0,1.09725362]
[1680622734917,0.05088257,28039.0,28038.0,1.09759616]
[1680622735800,0.05088257,28039.0,28038.0,0.3526196]
[1680622736002,0.05088257,28039.0,28038.0,0.3668856]
[1680622736215,0.05088257,28039.0,28038.0,0.3526196]
[1680622736433,0.05088257,28039.0,28038.0,0.3668856]
[1680622737114,0.05088257,28039.0,28038.0,0.25019954]
[1680622737343,0.04588257,28039.0,28038.0,0.23593354]
[1680622737569,0.04588257,28039.0,28038.0,0.20966254]
[1680622738264,0.08006157,28039.0,28038.0,0.20966254]
[1680622738478,0.07962957,28039.0,28038.0,0.20966254]
[1680622738696,0.04588257,28039.0,28038.0,0.03854254]
[1680622739343,0.07950857,28039.0,28038.0,0.03854254]
[1680622740482,0.16430857,28039.0,28038.0,0.03854254]
[1680622740709,0.36853639,28039.0,28038.0,0.03854254]
[1680622740953,0.36883639,28039.0,28038.0,0.03854254]
[1680622742038,0.36883639,28039.0,28038.0,0.01054254]
[1680622742253,0.36883639,28039.0,28038.0,0.18166254]
[1680622742398,0.36883639,28039.0,28038.0,0.01054254]
[1680622742601,0.13098257,28039.0,28038.0,0.01850879]
[1680622742810,0.13268257,28039.0,28038.0,0.00034254]
[1680622743248,0.13268257,28039.0,28038.0,0.17146254]